fUST/lending_fUST_20250602
["ID","MTS","AMOUNT","RATE_DAILY","PERIOD"]
[363671744,1748808638898,-500.0,0.00016711,2]
[363671746,1748808638907,-500.0,0.00016711,2]
[363671748,1748808638917,-500.0,0.00016711,2]
[363671750,1748808638926,-500.0,0.00016711,2]
[363671752,1748808638935,-500.0,0.00016711,2]
[363671754,1748808638945,-518.75500692,0.00016711,2]
[363671756,1748808638954,-500.0,0.00016711,2]
[363671758,1748808638964,-500.0,0.00016711,2]
[363671760,1748808638973,-500.0,0.00016711,2]
[363671762,1748808638982,-500.0,0.00016711,2]
[363671763,1748808638991,-500.0,0.00016711,2]
[363671764,1748808639001,-187.20892823,0.00016711,2]
[363671765,1748808639010,-430.0,0.00016712,2]
[363671766,1748808639019,-430.0,0.00016712,2]
[363671767,1748808639027,-380.98,0.00016712,2]
[363671768,1748808639037,-430.0,0.00016712,2]
[363671769,1748808639047,-153.23,0.00016712,2]
[363671770,1748808639056,-430.0,0.00016712,2]
[363671771,1748808639065,-430.0,0.00016712,2]
[363671772,1748808639074,-445.25,0.00016712,2]
[363671773,1748808639083,-437.83,0.00016712,2]
[363671774,1748808639094,-430.0,0.00016712,2]
[363671775,1748808639102,-1028.25,0.00016712,2]
[363671776,1748808639112,-741.59,0.00016712,2]
[363671777,1748808639121,-430.0,0.00016712,2]
[363671778,1748808639130,-937.99,0.00016712,2]
[363671779,1748808639139,-430.0,0.00016712,2]
[363671780,1748808639151,-686.87,0.00016712,2]
[363671781,1748808639160,-316.41932258,0.00016712,2]
[363671782,1748808639169,-430.0,0.00016712,2]
[363671783,1748808639178,-430.0,0.00016712,2]
[363671784,1748808639187,-924.69,0.00016712,2]
[363671785,1748808639196,-874.87,0.00016712,2]
[363671787,1748808639205,-1173.86,0.00016712,2]
[363671788,1748808639215,-430.0,0.00016712,2]
[363671790,1748808639224,-430.0,0.00016712,2]
[363671792,1748808639234,-553.3,0.00016712,2]
[363671794,1748808639243,-430.0,0.00016712,2]
[363671796,1748808639252,-430.0,0.00016712,2]
[363671798,1748808639262,-151.0,0.00016794,2]
[363671800,1748808639271,-4174.62461941,0.000169,2]
[363671802,1748808639281,-430.0,0.00016986,2]
[363671804,1748808639291,-430.0,0.00016986,2]
[363671806,1748808639300,-430.0,0.00016986,2]
[363671808,1748808639309,-430.0,0.00016986,2]
[363671810,1748808639319,-430.0,0.00016986,2]
[363671812,1748808639329,-445.25,0.00016986,2]
[363671814,1748808639339,-437.83,0.00016986,2]
[363671816,1748808639348,-430.0,0.00016986,2]
[363671818,1748808639358,-1028.25,0.00016986,2]
[363671820,1748808639367,-741.59,0.00016986,2]
[363671822,1748808639377,-430.0,0.00016986,2]
[363671824,1748808639386,-937.99,0.00016986,2]
[363671826,1748808639396,-686.87,0.00016986,2]
[363671828,1748808639405,-430.0,0.00016986,2]
[363671830,1748808639415,-430.0,0.00016986,2]
[363671832,1748808639424,-924.69,0.00016986,2]
[363671834,1748808639434,-874.87,0.00016986,2]
[363671836,1748808639443,-1173.86,0.00016986,2]
[363671838,1748808639452,-430.0,0.00016986,2]
[363671840,1748808639462,-430.0,0.00016986,2]
[363671843,1748808639471,-553.3,0.00016986,2]
[363671845,1748808639481,-430.0,0.00016986,2]
[363671847,1748808639491,-502.24210544,0.00017123,2]
[363671849,1748808639500,-500.0,0.00017123,2]
[363671851,1748808639509,-500.0,0.00017123,2]
[363671853,1748808639518,-4174.62461934,0.00017141,2]
[363671855,1748808639528,-500.0,0.00017148,2]
[363671857,1748808639537,-160.0,0.00017259,2]
[363671859,1748808639547,-430.0,0.0001726,2]
[363671861,1748808639561,-430.0,0.0001726,2]
[363671863,1748808639570,-430.0,0.0001726,2]
[363671865,1748808639579,-430.0,0.0001726,2]
[363671867,1748808639589,-409.45,0.0001726,2]
[363671869,1748808639600,-445.25,0.0001726,2]
[363671871,1748808639609,-437.83,0.0001726,2]
[363671873,1748808639618,-430.0,0.0001726,2]
[363671875,1748808639629,-1028.25,0.0001726,2]
[363671877,1748808639639,-741.59,0.0001726,2]
[363671878,1748808639649,-282.16,0.0001726,2]
[363671880,1748808639659,-937.99,0.0001726,2]
[363671883,1748808639671,-686.87,0.0001726,2]
[363671885,1748808639680,-430.0,0.0001726,2]
[363671887,1748808639690,-430.0,0.0001726,2]
[363671889,1748808639699,-924.69,0.0001726,2]
[363671891,1748808639709,-874.87,0.0001726,2]
[363671893,1748808639718,-1173.86,0.0001726,2]
[363671895,1748808639728,-430.0,0.0001726,2]
[363671897,1748808639737,-197.33504809,0.0001726,2]
[363671899,1748808639747,-553.3,0.0001726,2]
[363671901,1748808639756,-430.0,0.0001726,2]
[363671903,1748808639765,-4174.62461934,0.00017383,2]
[363671905,1748808639775,-182.5752987,0.000174,2]
[363671907,1748808639784,-182.0,0.000174,2]
[363671909,1748808639794,-182.0,0.000174,2]
[363671911,1748808639803,-182.0,0.000174,2]
[363671913,1748808639812,-181.9,0.000174,2]
[363671915,1748808639822,-1680.0,0.00017443,2]
[363671917,1748808639831,-430.0,0.00017534,2]
[363671919,1748808639841,-430.0,0.00017534,2]
[363671921,1748808639850,-430.0,0.00017534,2]
[363671923,1748808639860,-360.91,0.00017534,2]
[363671925,1748808639869,-445.25,0.00017534,2]
[363671927,1748808639878,-437.83,0.00017534,2]
[363671929,1748808639887,-430.0,0.00017534,2]
[363671931,1748808639896,-1028.25,0.00017534,2]
[363671933,1748808639905,-741.59,0.00017534,2]
[363671935,1748808639915,-937.99,0.00017534,2]
[363671937,1748808639925,-686.87,0.00017534,2]
[363671939,1748808639934,-430.0,0.00017534,2]
[363671941,1748808639943,-924.69,0.00017534,2]
[363671943,1748808639953,-874.87,0.00017534,2]
[363671945,1748808639963,-1173.86,0.00017534,2]
[363671947,1748808639973,-430.0,0.00017534,2]
[363671949,1748808639982,-553.3,0.00017534,2]
[363671951,1748808639992,-430.0,0.00017534,2]
[363671953,1748808640001,-4174.62461934,0.00017624,2]
[363671955,1748808640011,-503.93213778,0.00017686,2]
[363671957,1748808640020,-500.0,0.00017686,2]
[363671959,1748808640029,-500.0,0.00017686,2]
[363671961,1748808640039,-430.0,0.00017808,2]
[363671963,1748808640048,-430.0,0.00017808,2]
[363671965,1748808640058,-430.0,0.00017808,2]
[363671967,1748808640068,-445.25,0.00017808,2]
[363671969,1748808640078,-437.83,0.00017808,2]
[363671971,1748808640088,-379.02,0.00017808,2]
[363671973,1748808640098,-1028.25,0.00017808,2]
[363671975,1748808640107,-741.59,0.00017808,2]
[363671977,1748808640116,-937.99,0.00017808,2]
[363671979,1748808640126,-686.87,0.00017808,2]
[363671981,1748808640135,-430.0,0.00017808,2]
[363671983,1748808640145,-924.69,0.00017808,2]
[363671985,1748808640155,-874.87,0.00017808,2]
[363671987,1748808640165,-1173.86,0.00017808,2]
[363671989,1748808640175,-430.0,0.00017808,2]
[363671991,1748808640185,-553.3,0.00017808,2]
[363671993,1748808640194,-530.45,0.00017808,2]
[363671995,1748808640205,-4174.62461934,0.00017866,2]
[363671997,1748808640214,-420.0,0.00017959,2]
[363671999,1748808640224,-196.0,0.00017959,2]
[363672001,1748808640234,-1000.0,0.00017994,7]
[363672003,1748808640244,-1000.0,0.00017994,7]
[363672006,1748808640255,-1000.0,0.00017994,7]
[363672008,1748808640264,-1000.0,0.00017994,7]
[363672009,1748808640274,-1000.0,0.00017994,2]
[363672011,1748808640283,-1000.0,0.00017994,2]
[363672013,1748808640292,-1000.0,0.00017994,2]
[363672015,1748808640301,-182.95,0.00018,2]
[363672017,1748808640311,-500.0,0.00018069,2]
[363672019,1748808640321,-1000.0,0.00018078,7]
[363672021,1748808640330,-1000.0,0.00018078,7]
[363672023,1748808640340,-1000.0,0.00018078,7]
[363672025,1748808640350,-1000.0,0.00018078,7]
[363672027,1748808640359,-1000.0,0.00018078,7]
[363672029,1748808640368,-1000.0,0.00018078,7]
[363672031,1748808640378,-1000.0,0.00018078,7]
[363672034,1748808640396,-1000.0,0.00018078,7]
[363672036,1748808640407,-1000.0,0.00018078,7]
[363672038,1748808640416,-1000.0,0.00018078,7]
[363672040,1748808640425,-1000.0,0.00018078,2]
[363672041,1748808640435,-1000.0,0.00018078,2]
[363672044,1748808640445,-1000.0,0.00018078,2]
[363672045,1748808640454,-1000.0,0.00018078,2]
[363672047,1748808640463,-1000.0,0.00018078,2]
[363672049,1748808640473,-1000.0,0.00018078,2]
[363672051,1748808640483,-1000.0,0.00018078,2]
[363672053,1748808640492,-1000.0,0.00018078,2]
[363672055,1748808640501,-1000.0,0.00018078,2]
[363672057,1748808640510,-1000.0,0.00018078,2]
[363672059,1748808640519,-430.0,0.00018082,2]
[363672061,1748808640531,-430.0,0.00018082,2]
[363672063,1748808640541,-430.0,0.00018082,2]
[363672065,1748808640550,-445.25,0.00018082,2]
[363672067,1748808640563,-437.83,0.00018082,2]
[363672069,1748808640573,-1028.25,0.00018082,2]
[363672071,1748808640582,-741.59,0.00018082,2]
[363672074,1748808640592,-937.99,0.00018082,2]
[363672075,1748808640600,-686.87,0.00018082,2]
[363672077,1748808640610,-430.0,0.00018082,2]
[363672079,1748808640619,-924.69,0.00018082,2]
[363672081,1748808640629,-874.87,0.00018082,2]
[363672083,1748808640638,-1173.86,0.00018082,2]
[363672085,1748808640648,-430.0,0.00018082,2]
[363672087,1748808640658,-553.3,0.00018082,2]
[363672090,1748808640668,-4174.62461934,0.00018107,2]
[363672092,1748808640678,-1402.84,0.00018138,2]
[363672094,1748808640687,-160.0,0.00018146,2]
[363672095,1748808640696,-842.5625,0.00018146,2]
[363672098,1748808640705,-423.51412927,0.00018146,2]
[363672100,1748808640715,-229.3709046,0.00018146,2]
[363672102,1748808640724,-212.80060342,0.00018146,2]
[363672104,1748808640734,-160.0,0.00018146,2]
[363672106,1748808640744,-4174.62461934,0.00018348,2]
[363672108,1748808640754,-430.0,0.00018356,2]
[363672110,1748808640764,-430.0,0.00018356,2]
[363672112,1748808640773,-430.0,0.00018356,2]
[363672114,1748808640782,-445.25,0.00018356,2]
[363672116,1748808640791,-437.83,0.00018356,2]
[363672118,1748808640800,-1028.25,0.00018356,2]
[363672120,1748808640810,-741.59,0.00018356,2]
[363672122,1748808640820,-937.99,0.00018356,2]
[363672124,1748808640829,-686.87,0.00018356,2]
[363672126,1748808640839,-430.0,0.00018356,2]
[363672128,1748808640849,-924.69,0.00018356,2]
[363672130,1748808640858,-874.87,0.00018356,2]
[363672132,1748808640867,-1173.86,0.00018356,2]
[363672134,1748808640877,-430.0,0.00018356,2]
[363672136,1748808640886,-553.3,0.00018356,2]
[363672138,1748808640895,-500.0,0.00018453,2]
[363672140,1748808640905,-500.0,0.00018453,2]
[363672142,1748808640915,-500.0,0.00018453,2]
[363672144,1748808640924,-182.5752987,0.00018462,2]
[363672146,1748808640934,-259.30331574,0.0001856,2]
[363672148,1748808640943,-4174.62461934,0.0001859,2]
[363672150,1748808640953,-160.0,0.00018629,2]
[363672152,1748808640963,-430.0,0.0001863,2]
[363672154,1748808640972,-430.0,0.0001863,2]
[363672156,1748808640981,-430.0,0.0001863,2]
[363672158,1748808640991,-445.25,0.0001863,2]
[363672160,1748808641000,-437.83,0.0001863,2]
[363672162,1748808641010,-1028.25,0.0001863,2]
[363672164,1748808641020,-741.59,0.0001863,2]
[363672166,1748808641030,-937.99,0.0001863,2]
[363672168,1748808641040,-686.87,0.0001863,2]
[363672171,1748808641050,-430.0,0.0001863,2]
[363672173,1748808641060,-924.69,0.0001863,2]
[363672175,1748808641069,-874.87,0.0001863,2]
[363672177,1748808641079,-1173.86,0.0001863,2]
[363672178,1748808641090,-430.0,0.0001863,2]
[363672180,1748808641100,-553.3,0.0001863,2]
[363672182,1748808641109,-500.0,0.00018663,2]
[363672185,1748808641119,-500.0,0.00018663,2]
[363672187,1748808641128,-500.0,0.00018663,2]
[363672189,1748808641138,-502.34771245,0.00018663,2]
[363672191,1748808641147,-500.0,0.00018663,2]
[363672193,1748808641158,-500.0,0.00018663,2]
[363672195,1748808641168,-490.08930835,0.00018663,2]
[363672197,1748808641178,-500.0,0.00018663,2]
[363672199,1748808641188,-500.0,0.00018663,2]
[363672201,1748808641197,-500.0,0.00018678,2]
[363672203,1748808641207,-500.0,0.00018678,2]
[363672205,1748808641216,-500.0,0.000188,2]
[363672207,1748808641225,-4174.62461934,0.00018831,2]
[363672209,1748808641236,-789.53798259,0.000189,2]
[363672211,1748808641246,-1400.44818736,0.00018901,2]
[363672213,1748808641255,-430.0,0.00018904,2]
[363672215,1748808641265,-237.20122629,0.00018904,2]
[363672217,1748808641275,-430.0,0.00018904,2]
[363672219,1748808641284,-445.25,0.00018904,2]
[363672221,1748808641294,-437.83,0.00018904,2]
[363672223,1748808641304,-1028.25,0.00018904,2]
[363672225,1748808641314,-741.59,0.00018904,2]
[363672228,1748808641324,-937.99,0.00018904,2]
[363672229,1748808641333,-686.87,0.00018904,2]
[363672231,1748808641343,-430.0,0.00018904,2]
[363672233,1748808641354,-924.69,0.00018904,2]
[363672236,1748808641365,-874.87,0.00018904,2]
[363672238,1748808641376,-1173.86,0.00018904,2]
[363672240,1748808641385,-430.0,0.00018904,2]
[363672253,1748808641497,-553.3,0.00018904,2]
[363672255,1748808641507,-500.0,0.00019001,2]
[363672257,1748808641516,-503.28249496,0.00019001,2]
[363672259,1748808641525,-4174.62461934,0.00019072,2]
[363672261,1748808641534,-2154.0,0.00019169,2]
[363672263,1748808641544,-430.0,0.00019178,2]
[363672265,1748808641554,-430.0,0.00019178,2]
[363672267,1748808641566,-430.0,0.00019178,2]
[363672269,1748808641575,-430.0,0.00019178,2]
[363672271,1748808641585,-430.0,0.00019178,2]
[363672273,1748808641595,-430.0,0.00019178,2]
[363672275,1748808641606,-430.0,0.00019178,2]
[363672278,1748808641615,-445.25,0.00019178,2]
[363672280,1748808641624,-437.83,0.00019178,2]
[363672282,1748808641635,-1028.25,0.00019178,2]
[363672284,1748808641646,-741.59,0.00019178,2]
[363672286,1748808641655,-937.99,0.00019178,2]
[363672287,1748808641664,-686.87,0.00019178,2]
[363672289,1748808641673,-430.0,0.00019178,2]
[363672292,1748808641684,-924.69,0.00019178,2]
[363672293,1748808641693,-874.87,0.00019178,2]
[363672295,1748808641703,-1173.86,0.00019178,2]
[363672297,1748808641712,-430.0,0.00019178,2]
[363672299,1748808641721,-553.3,0.00019178,2]
[363672300,1748808641731,-500.0,0.00019178,2]
[363672302,1748808641740,-500.0,0.00019178,2]
[363672304,1748808641750,-500.0,0.00019178,2]
[363672306,1748808641759,-500.0,0.00019178,2]
[363672308,1748808641769,-562.73371435,0.00019178,2]
[363672310,1748808641778,-151.0,0.00019178,2]
[363672311,1748808641788,-173.899304,0.00019178,2]
[363672313,1748808641798,-1000.0,0.00019211,2]
[363672315,1748808641807,-500.0,0.00019211,2]
[363672317,1748808641817,-399.38489475,0.00019211,2]
[363672319,1748808641826,-1000.0,0.00019211,2]
[363672320,1748808641836,-500.0,0.00019211,2]
[363672322,1748808641846,-156.587,0.00019233,2]
[363672324,1748808641857,-162.380719,0.00019288,2]
[363672326,1748808641866,-4174.62461934,0.00019314,2]
[363672328,1748808641875,-168.3888056,0.00019343,2]
[363672329,1748808641885,-174.61919141,0.00019398,2]
[363672331,1748808641894,-430.0,0.00019452,2]
[363672333,1748808641903,-430.0,0.00019452,2]
[363672335,1748808641912,-445.25,0.00019452,2]
[363672337,1748808641921,-437.83,0.00019452,2]
[363672339,1748808641931,-1028.25,0.00019452,2]
[363672340,1748808641940,-741.59,0.00019452,2]
[363672342,1748808641950,-937.99,0.00019452,2]
[363672344,1748808641959,-686.87,0.00019452,2]
[363672346,1748808641968,-430.0,0.00019452,2]
[363672348,1748808641978,-924.69,0.00019452,2]
[363672350,1748808641988,-874.87,0.00019452,2]
[363672351,1748808641998,-1173.86,0.00019452,2]
[363672353,1748808642007,-430.0,0.00019452,2]
[363672355,1748808642017,-553.3,0.00019452,2]
[363672357,1748808642026,-181.08010149,0.00019453,2]
[363672359,1748808642036,-187.78006525,0.00019508,2]
[363672360,1748808642045,-182.5752987,0.00019525,2]
[363672362,1748808642055,-4174.62461934,0.00019555,2]
[363672364,1748808642064,-194.72792766,0.00019563,2]
[363672366,1748808642073,-408.57,0.00019573,2]
[363672367,1748808642083,-201.93286099,0.00019618,2]
[363672369,1748808642093,-587.0,0.00019626,2]
[363672371,1748808642103,-209.40437684,0.00019673,2]
[363672373,1748808642113,-213.49035792,0.00019726,2]
[363672375,1748808642122,-430.0,0.00019726,2]
[363672376,1748808642131,-445.25,0.00019726,2]
[363672378,1748808642141,-437.83,0.00019726,2]
[363672380,1748808642150,-1028.25,0.00019726,2]
[363672382,1748808642161,-741.59,0.00019726,2]
[363672384,1748808642171,-937.99,0.00019726,2]
[363672386,1748808642180,-686.87,0.00019726,2]
[363672387,1748808642191,-430.0,0.00019726,2]
[363672389,1748808642202,-924.69,0.00019726,2]
[363672391,1748808642212,-874.87,0.00019726,2]
[363672393,1748808642222,-1173.86,0.00019726,2]
[363672395,1748808642231,-430.0,0.00019726,2]
[363672397,1748808642242,-553.3,0.00019726,2]
[363672398,1748808642251,-217.15233878,0.00019728,2]
[363672401,1748808642262,-500.0,0.00019759,2]
[363672403,1748808642272,-225.18697532,0.00019783,2]
[363672404,1748808642281,-2805.68,0.00019787,2]
[363672406,1748808642291,-4174.62461934,0.00019797,2]
[363672408,1748808642300,-233.51889341,0.00019838,2]
[363672410,1748808642310,-242.15909246,0.00019893,2]
[363672412,1748808642320,-251.11897888,0.00019948,2]
[363672413,1748808642330,-160.0,0.00019999,2]
[363672415,1748808642340,-430.0,0.0002,2]
[363672417,1748808642349,-445.25,0.0002,2]
[363672419,1748808642358,-437.83,0.0002,2]
[363672421,1748808642368,-1028.25,0.0002,2]
[363672423,1748808642378,-741.59,0.0002,2]
[363672425,1748808642388,-937.99,0.0002,2]
[363672427,1748808642397,-686.87,0.0002,2]
[363672428,1748808642407,-430.0,0.0002,2]
[363672430,1748808642417,-924.69,0.0002,2]
[363672432,1748808642427,-874.87,0.0002,2]
[363672434,1748808642436,-1173.86,0.0002,2]
[363672436,1748808642446,-430.0,0.0002,2]
[363672438,1748808642456,-553.3,0.0002,2]
[363672440,1748808642466,-217.06411405,0.00020003,2]
[363672442,1748808642476,-4174.62461934,0.00020038,2]
[363672444,1748808642485,-500.0,0.00020067,2]
[363672445,1748808642495,-1400.44818733,0.00020101,2]
[363672448,1748808642504,-203.93591,0.00020187,2]
[363672451,1748808642514,-868.462629,0.00020234,2]
[363672453,1748808642523,-151.0,0.0002027,2]
[363672456,1748808642532,-252.352497,0.0002027,2]
[363672459,1748808642542,-430.0,0.00020273,2]
[363672461,1748808642551,-445.25,0.00020273,2]
[363672463,1748808642564,-437.83,0.00020273,2]
[363672464,1748808642574,-1028.25,0.00020273,2]
[363672466,1748808642584,-741.59,0.00020273,2]
[363672468,1748808642595,-937.99,0.00020273,2]
[363672470,1748808642606,-686.87,0.00020273,2]
[363672472,1748808642617,-430.0,0.00020273,2]
[363672474,1748808642628,-924.69,0.00020273,2]
[363672476,1748808642638,-874.87,0.00020273,2]
[363672478,1748808642647,-1173.86,0.00020273,2]
[363672480,1748808642657,-430.0,0.00020273,2]
[363672482,1748808642666,-553.3,0.00020273,2]
[363672483,1748808642676,-4174.62461934,0.00020279,3]
[363672485,1748808642686,-4174.62461934,0.00020521,3]
[363672487,1748808642695,-430.0,0.00020547,2]
[363672489,1748808642705,-445.25,0.00020547,2]
[363672491,1748808642714,-437.83,0.00020547,2]
[363672493,1748808642724,-1028.25,0.00020547,2]
[363672494,1748808642733,-741.59,0.00020547,2]
[363672496,1748808642743,-937.99,0.00020547,2]
[363672498,1748808642753,-686.87,0.00020547,2]
[363672500,1748808642762,-430.0,0.00020547,2]
[363672502,1748808642772,-924.69,0.00020547,2]
[363672504,1748808642781,-874.87,0.00020547,2]
[363672506,1748808642791,-1173.86,0.00020547,2]
[363672508,1748808642800,-430.0,0.00020547,2]
[363672510,1748808642810,-553.3,0.00020547,2]
[363672511,1748808642819,-182.5752987,0.00020588,2]
[363672513,1748808642828,-310.34,0.000206,2]
[363672515,1748808642838,-207.4,0.00020686,2]
[363672517,1748808642848,-154.67873888,0.00020686,2]
[363672519,1748808642857,-272.80097017,0.00020686,2]
[363672521,1748808642867,-800.0,0.00020686,2]
[363672523,1748808642876,-300.0,0.00020686,2]
[363672525,1748808642886,-800.0,0.00020686,2]
[363672526,1748808642895,-300.0,0.00020686,2]
[363672528,1748808642905,-800.0,0.00020686,2]
[363672530,1748808642914,-300.0,0.00020686,2]
[363672532,1748808642923,-800.0,0.00020686,2]
[363672534,1748808642933,-300.0,0.00020686,2]
[363672536,1748808642943,-5000.0,0.00020686,2]
[363672538,1748808642952,-800.0,0.00020686,2]
[363672540,1748808642962,-300.0,0.00020686,2]
[363672542,1748808642971,-800.0,0.00020686,2]
[363672543,1748808642981,-300.0,0.00020686,2]
[363672545,1748808642990,-800.0,0.00020686,2]
[363672547,1748808643000,-300.0,0.00020686,2]
[363672549,1748808643009,-800.0,0.00020686,2]
[363672551,1748808643019,-300.0,0.00020686,2]
[363672553,1748808643029,-800.0,0.00020686,2]
[363672555,1748808643038,-300.0,0.00020686,2]
[363672557,1748808643048,-800.0,0.00020686,2]
[363672559,1748808643058,-300.0,0.00020686,2]
[363672560,1748808643069,-800.0,0.00020686,2]
[363672562,1748808643078,-800.0,0.00020686,2]
[363672564,1748808643088,-300.0,0.00020686,2]
[363672566,1748808643098,-800.0,0.00020686,2]
[363672568,1748808643107,-300.0,0.00020686,2]
[363672570,1748808643117,-800.0,0.00020686,2]
[363672572,1748808643126,-300.0,0.00020686,2]
[363672573,1748808643136,-800.0,0.00020686,2]
[363672575,1748808643146,-300.0,0.00020686,2]
[363672577,1748808643157,-300.0,0.00020686,2]
[363672579,1748808643167,-2418.22,0.000207,2]
[363672581,1748808643177,-439.22,0.000207,2]
[363672583,1748808643187,-4174.62461934,0.00020762,3]
[363672585,1748808643197,-430.0,0.00020821,2]
[363672587,1748808643207,-445.25,0.00020821,2]
[363672589,1748808643217,-437.83,0.00020821,2]
[363672591,1748808643227,-1028.25,0.00020821,2]
[363672592,1748808643236,-741.59,0.00020821,2]
[363672594,1748808643246,-937.99,0.00020821,2]
[363672596,1748808643256,-686.87,0.00020821,2]
[363672598,1748808643266,-430.0,0.00020821,2]
[363672600,1748808643276,-924.69,0.00020821,2]
[363672602,1748808643286,-874.87,0.00020821,2]
[363672604,1748808643296,-1173.86,0.00020821,2]
[363672606,1748808643305,-430.0,0.00020821,2]
[363672607,1748808643315,-553.3,0.00020821,2]
[363672609,1748808643325,-500.92705895,0.00020864,2]
[363672611,1748808643334,-500.0,0.00020864,2]
[363672613,1748808643343,-500.0,0.00020864,2]
[363672615,1748808643352,-500.0,0.00020864,2]
[363672617,1748808643361,-500.0,0.00020864,2]
[363672618,1748808643371,-525.58676027,0.00020864,2]
[363672620,1748808643381,-500.48097815,0.00020864,2]
[363672622,1748808643391,-500.0,0.00020864,2]
[363672624,1748808643401,-32425.07483976,0.0002099,2]
[363672626,1748808643410,-3000.0,0.00021,2]
[363672628,1748808643420,-4174.62461934,0.00021003,4]
[363672630,1748808643429,-3000.0,0.0002101,2]
[363672632,1748808643439,-3000.0,0.0002102,2]
[363672633,1748808643448,-3000.0,0.0002103,2]
[363672635,1748808643457,-3000.0,0.0002104,2]
[363672637,1748808643467,-3000.0,0.0002105,2]
[363672639,1748808643476,-3000.0,0.0002106,2]
[363672641,1748808643486,-3000.0,0.0002107,2]
[363672643,1748808643495,-3000.0,0.0002108,2]
[363672645,1748808643504,-3000.0,0.0002109,2]
[363672646,1748808643513,-430.0,0.00021095,2]
[363672648,1748808643523,-445.25,0.00021095,2]
[363672650,1748808643533,-437.83,0.00021095,2]
[363672652,1748808643542,-1028.25,0.00021095,2]
[363672654,1748808643553,-741.59,0.00021095,2]
[363672656,1748808643565,-937.99,0.00021095,2]
[363672658,1748808643574,-686.87,0.00021095,2]
[363672660,1748808643584,-430.0,0.00021095,2]
[363672661,1748808643595,-924.69,0.00021095,2]
[363672663,1748808643606,-874.87,0.00021095,2]
[363672665,1748808643615,-1173.86,0.00021095,2]
[363672667,1748808643625,-430.0,0.00021095,2]
[363672669,1748808643638,-553.3,0.00021095,2]
[363672671,1748808643648,-3000.0,0.000211,2]
[363672673,1748808643657,-3000.0,0.0002111,2]
[363672675,1748808643667,-3000.0,0.0002112,2]
[363672677,1748808643676,-3000.0,0.0002113,2]
[363672679,1748808643686,-3000.0,0.0002114,2]
[363672681,1748808643695,-5517.637473,0.0002115,2]
[363672683,1748808643705,-5000.0,0.00021234,2]
[363672684,1748808643715,-4174.62461934,0.00021245,4]
[363672686,1748808643725,-1400.44818733,0.000213,2]
[363672688,1748808643734,-430.0,0.00021369,2]
[363672690,1748808643744,-445.25,0.00021369,2]
[363672692,1748808643753,-437.83,0.00021369,2]
[363672694,1748808643763,-1028.25,0.00021369,2]
[363672696,1748808643772,-741.59,0.00021369,2]
[363672698,1748808643782,-937.99,0.00021369,2]
[363672700,1748808643791,-686.87,0.00021369,2]
[363672701,1748808643800,-430.0,0.00021369,2]
[363672703,1748808643810,-924.69,0.00021369,2]
[363672705,1748808643819,-874.87,0.00021369,2]
[363672707,1748808643830,-1173.86,0.00021369,2]